bitfinex/quotes_BTCUSD_20250703
["timestamp","ask_amount","ask_price","bid_price","bid_amount"]
[1751523907678,0.067898,109590.0,109580.0,0.04475538]
[1751523907889,0.35887166,109590.0,109580.0,0.04475538]
[1751523908049,0.36799641,109590.0,109580.0,0.04475538]
[1751523909529,0.46988141,109590.0,109580.0,0.04475538]
[1751523909736,0.64325556,109590.0,109580.0,0.04475538]
[1751523909937,0.64325556,109590.0,109580.0,0.01745983]
[1751523910549,0.63363114,109590.0,109580.0,0.01745983]
[1751523910710,0.71726664,109590.0,109580.0,0.01745983]
[1751523911716,0.62450656,109590.0,109580.0,0.01745983]
[1751523913741,0.63370159,109590.0,109580.0,0.01745983]
[1751523915182,0.62457684,109590.0,109580.0,0.01745983]
[1751523915612,0.61545192,109590.0,109580.0,0.01745983]
[1751523916531,0.61445192,109590.0,109580.0,0.01745983]
[1751523916963,0.6822014,109590.0,109580.0,0.01745983]
[1751523918227,0.9139214,109590.0,109580.0,0.01745983]
[1751523919511,1.2539214,109590.0,109580.0,0.01745983]
[1751523920385,1.55401981,109590.0,109580.0,0.01745983]
[1751523921020,1.55421981,109590.0,109580.0,0.01745983]
[1751523921459,1.58165881,109590.0,109580.0,0.01745983]
[1751523921715,1.58165881,109590.0,109580.0,0.0004]
[1751523921932,1.57965881,109590.0,109580.0,0.0004]
[1751523922361,1.58365881,109590.0,109580.0,0.0004]
[1751523922788,1.57665881,109590.0,109580.0,0.0004]
[1751523923016,1.58065881,109590.0,109580.0,0.0004]
[1751523923220,1.58465881,109590.0,109580.0,0.0004]
[1751523925369,1.80393881,109590.0,109580.0,0.0004]
[1751523925996,1.80146894,109590.0,109580.0,0.0004]
[1751523927160,1.80146894,109590.0,109580.0,0.0174505]
[1751523928184,1.73871946,109590.0,109580.0,0.0174505]
[1751523928414,0.93080267,109590.0,109580.0,0.0174505]
[1751523928632,0.93422402,109590.0,109580.0,0.0174505]
[1751523928835,0.32936441,109590.0,109580.0,0.31754891]
[1751523929048,0.57909374,109590.0,109580.0,0.0330505]
[1751523929245,0.87919215,109590.0,109580.0,0.0330505]
[1751523929464,0.56996899,109590.0,109580.0,0.0174505]
[1751523929688,0.8700674,109590.0,109580.0,0.0174505]
[1751523929898,0.8660674,109590.0,109580.0,0.0174505]
[1751523930100,0.87719215,109590.0,109580.0,0.0174505]
[1751523930307,0.87319215,109590.0,109580.0,0.0174505]
[1751523930509,0.87323215,109590.0,109580.0,0.0174505]
[1751523930712,0.87623215,109590.0,109580.0,0.0174505]
[1751523931801,0.57613374,109590.0,109580.0,0.0174505]
[1751523932790,0.58525866,109590.0,109580.0,0.0174505]
[1751523933006,0.57613374,109590.0,109580.0,0.0174505]
[1751523933251,1.17159796,109590.0,109580.0,0.0174505]
[1751523933467,1.09208897,109590.0,109580.0,0.0174505]
[1751523935034,1.07628897,109590.0,109580.0,0.0174505]
[1751523935465,0.0052,109590.0,109580.0,0.39755179]
[1751523935681,0.0052,109590.0,109580.0,0.81960675]
[1751523935899,0.0052,109590.0,109580.0,0.49940101]
[1751523936359,0.0052,109590.0,109580.0,0.13204456]
[1751523936572,0.0002,109590.0,109580.0,0.16839519]
[1751523936790,0.0002,109590.0,109580.0,0.11383013]
[1751523937010,0.0002,109590.0,109580.0,0.11483013]
[1751523937448,0.0002,109590.0,109580.0,0.13664129]
[1751523938101,0.0002,109590.0,109580.0,0.45684703]
[1751523938336,0.0002,109590.0,109580.0,0.13664129]
[1751523938549,0.0002,109590.0,109580.0,0.45684703]
[1751523939185,0.0002,109590.0,109580.0,0.51141209]
[1751523939402,0.0002,109590.0,109580.0,0.78668722]
[1751523939654,0.0002,109590.0,109580.0,0.80122807]
[1751523939885,0.0002,109590.0,109580.0,0.988099]
[1751523940101,0.0002,109590.0,109580.0,0.98809909]
[1751523940317,0.0002,109590.0,109580.0,0.99722425]
[1751523943206,0.0002,109590.0,109580.0,0.9607231]
[1751523943471,0.0002,109590.0,109580.0,0.75454154]
[1751523943844,0.0002,109590.0,109580.0,0.75466154]
[1751523944018,0.0002,109590.0,109580.0,0.19115785]
[1751523944228,0.00932425,109590.0,109580.0,0.10379287]
[1751523944432,0.33865449,109590.0,109580.0,0.10379287]
[1751523944634,0.33865441,109590.0,109580.0,0.06749074]
[1751523944843,0.02757316,109590.0,109580.0,0.05044024]
[1751523945253,0.02757316,109590.0,109580.0,0.02321116]
[1751523945456,0.03669767,109590.0,109580.0,0.02321116]
[1751523945658,0.03669758,109590.0,109580.0,0.02321116]
[1751523945857,0.0366975,109590.0,109580.0,0.02321116]
[1751523946229,0.06192217,109590.0,109580.0,0.02321116]
[1751523946472,0.06899851,109590.0,109580.0,0.02321116]
[1751523946684,0.05987359,109590.0,109580.0,0.02321116]
[1751523947004,0.04367359,109590.0,109580.0,0.02321116]
[1751523947208,0.37300425,109590.0,109580.0,0.04023402]
[1751523947435,0.36387933,109590.0,109580.0,0.04023402]
[1751523947642,0.03454892,109590.0,109580.0,0.04023402]
[1751523949093,0.04367359,109590.0,109580.0,0.04023402]
[1751523949308,0.03454892,109590.0,109580.0,0.04023402]
[1751523949571,0.0163,109590.0,109580.0,0.04023402]
[1751523949798,0.02542425,109590.0,109580.0,0.04023402]
[1751523950643,0.03454867,109590.0,109580.0,0.04023402]
[1751523950846,0.02542425,109590.0,109580.0,0.04023402]
[1751523951052,0.0163,109590.0,109580.0,0.04023402]
[1751523951265,0.0345485,109590.0,109580.0,0.04023402]
[1751523951667,0.03454842,109590.0,109580.0,0.04023402]
[1751523953148,0.04367284,109590.0,109580.0,0.04023402]
[1751523953665,0.38900316,109590.0,109580.0,0.04023402]
[1751523954201,0.37987858,109590.0,109580.0,0.04023402]
[1751523954607,0.38900316,109590.0,109580.0,0.04023402]
[1751523954813,0.37987858,109590.0,109580.0,0.04023402]
[1751523955050,0.04367284,109590.0,109580.0,0.04023402]
[1751523955235,0.36387858,109590.0,109580.0,0.04023402]
[1751523955445,0.04367284,109590.0,109580.0,0.04023402]
[1751523956315,0.05279734,109590.0,109580.0,0.04023402]
[1751523956723,0.04367284,109590.0,109580.0,0.04023402]
[1751523957387,0.05279734,109590.0,109580.0,0.04023402]
[1751523957847,0.04367284,109590.0,109580.0,0.04023402]
[1751523958373,0.03454842,109590.0,109580.0,0.04023402]
[1751523958635,0.04367284,109590.0,109580.0,0.04023402]
[1751523959536,0.05279742,109590.0,109580.0,0.04023402]
[1751523959985,0.04367284,109590.0,109580.0,0.04023402]
[1751523960510,0.04367275,109590.0,109580.0,0.04023402]
[1751523960722,0.02542417,109590.0,109580.0,0.04023402]
[1751523961144,0.0002,109590.0,109580.0,0.04025662]
[1751523961976,0.00932425,109590.0,109580.0,0.04025662]
[1751523962383,0.02492425,109590.0,109580.0,0.04025662]
[1751523962799,0.03404867,109590.0,109580.0,0.04025662]
[1751523963009,0.08917334,109590.0,109580.0,0.04025662]
[1751523963217,0.08917325,109590.0,109580.0,0.04025662]
[1751523963420,0.40937899,109590.0,109580.0,0.04025662]
[1751523963622,0.08004867,109590.0,109580.0,0.04025662]
[1751523963824,0.08917317,109590.0,109580.0,0.04025662]
[1751523965197,0.08004858,109590.0,109580.0,0.04025662]
[1751523965710,0.08917308,109590.0,109580.0,0.04025662]
[1751523966113,0.08004858,109590.0,109580.0,0.04025662]
[1751523967087,0.08004858,109590.0,109580.0,0.04025919]
[1751523967296,0.05532425,109590.0,109580.0,0.04025919]
[1751523967485,0.06444867,109590.0,109580.0,0.04025919]
[1751523967824,0.07974867,109590.0,109580.0,0.04025919]
[1751523969078,0.07062425,109590.0,109580.0,0.04025919]
[1751523969295,0.07974867,109590.0,109580.0,0.04025919]
[1751523969624,0.07062425,109590.0,109580.0,0.04025919]
[1751523969807,0.0615,109590.0,109580.0,0.04025919]
[1751523970348,0.0462,109590.0,109580.0,0.04025919]
[1751523970564,0.05532425,109590.0,109580.0,0.04025919]
[1751523971284,0.0002,109590.0,109580.0,0.04025919]
[1751523971488,0.0462,109590.0,109580.0,0.04025919]
[1751523971704,0.09714858,109590.0,109580.0,0.04025919]
[1751523972146,0.07182425,109590.0,109580.0,0.04025919]
[1751523972358,0.07182425,109590.0,109580.0,0.06748827]
[1751523974160,0.08094858,109590.0,109580.0,0.06748827]
[1751523975000,0.26786858,109590.0,109580.0,0.06748827]
[1751523975217,0.25874425,109590.0,109580.0,0.06748827]
[1751523975907,0.26786867,109590.0,109580.0,0.06748827]
[1751523976116,0.27699325,109590.0,109580.0,0.06748827]
[1751523976330,0.61299899,109590.0,109580.0,0.06748827]
[1751523976543,0.62212374,109590.0,109580.0,0.1037904]
[1751523976676,0.31104292,109590.0,109580.0,0.1037904]
[1751523976885,0.63124866,109590.0,109580.0,0.1037904]
[1751523977103,0.89738289,109590.0,109580.0,0.1037904]
[1751523977301,0.88825847,109590.0,109580.0,0.1037904]
[1751523977505,0.88825847,109590.0,109580.0,0.06748827]
[1751523978149,0.70576007,109590.0,109580.0,0.06748827]
[1751523978554,0.69663515,109590.0,109580.0,0.06748827]
[1751523978989,0.70576007,109590.0,109580.0,0.06748827]
[1751523979583,0.98101855,109590.0,109580.0,0.06748827]
[1751523979809,0.56805273,109590.0,109580.0,0.06748827]
[1751523980044,0.69663515,109590.0,109580.0,0.06748827]
[1751523980643,0.37642941,109590.0,109580.0,0.06748827]
[1751523980882,0.69663515,109590.0,109580.0,0.06748827]
[1751523981511,0.70576007,109590.0,109580.0,0.06748827]
[1751523981718,0.38555433,109590.0,109580.0,0.06748827]
[1751523982112,0.70576007,109590.0,109580.0,0.06748827]
[1751523982539,0.70576007,109590.0,109580.0,0.06753401]
[1751523983764,0.69663515,109590.0,109580.0,0.06753401]
[1751523984309,0.70576007,109590.0,109580.0,0.06753401]
[1751523985461,0.37642899,109590.0,109580.0,0.06753401]
[1751523985677,0.71488432,109590.0,109580.0,0.06753384]
[1751523985893,0.89738272,109590.0,109580.0,0.06772322]
[1751523986114,0.9901428,109590.0,109580.0,0.06772322]
[1751523986342,0.48743866,109590.0,109580.0,0.06772323]
[1751523986602,0.39467849,109590.0,109580.0,0.06772323]
[1751523986798,0.72400915,109590.0,109580.0,0.06772323]
[1751523987068,0.71488423,109590.0,109580.0,0.06772323]
[1751523987720,0.89738263,109590.0,109580.0,0.06772323]
[1751523987918,0.8882583,109590.0,109580.0,0.06772323]
[1751523988124,0.7057599,109590.0,109580.0,0.06772323]
[1751523988368,0.38555416,109590.0,109580.0,0.06772323]
[1751523988544,0.7057599,109590.0,109580.0,0.06772323]
[1751523989850,0.8882583,109590.0,109580.0,0.06772323]
[1751523990071,1.63209954,109590.0,109580.0,0.06772323]
[1751523990298,1.78209954,109590.0,109580.0,0.04037344]
[1751523990738,1.14168806,109590.0,109580.0,0.04037344]
[1751523990952,6.79664039,109590.0,109580.0,0.01849361]
[1751523991170,6.79664039,109590.0,109580.0,0.0014]
[1751523991381,6.82408239,109590.0,109580.0,0.0014]
[1751523991499,6.85246136,109590.0,109580.0,0.0014]
[1751523991949,6.85146136,109590.0,109580.0,0.0014]
[1751523992129,6.85146136,109590.0,109580.0,0.0004]
[1751523992330,6.62454136,109590.0,109580.0,0.0004]
[1751523992504,6.83120239,109590.0,109580.0,0.0004]
[1751523992715,6.83020239,109590.0,109580.0,0.0004]
[1751523995153,6.83620239,109590.0,109580.0,0.0004]
[1751523997355,6.83604239,109590.0,109580.0,0.0004]
[1751524000369,6.60216239,109590.0,109580.0,0.0004]
[1751524000587,6.83600239,109590.0,109580.0,0.0004]
[1751524002186,5.96175091,109590.0,109580.0,0.0004]
[1751524002389,6.83596239,109590.0,109580.0,0.0004]
[1751524004597,6.60216239,109590.0,109580.0,0.0004]
[1751524004779,6.83588239,109590.0,109580.0,0.0004]
[1751524005419,1.83588239,109590.0,109580.0,0.0004]
[1751524005636,6.83588239,109590.0,109580.0,0.0004]
[1751524005858,6.19547091,109590.0,109580.0,0.0004]
[1751524006061,6.83588239,109590.0,109580.0,0.0004]
[1751524014828,1.83588239,109590.0,109580.0,0.0004]
[1751524017332,1.19547091,109590.0,109580.0,0.0004]
[1751524017685,1.83588239,109590.0,109580.0,0.0004]
[1751524018468,1.86326136,109590.0,109580.0,0.0004]
[1751524020348,1.89976666,109590.0,109580.0,0.0004]
[1751524021337,1.25935518,109590.0,109580.0,0.0004]
[1751524021757,1.80696658,109590.0,109580.0,0.0004]
[1751524021964,1.7672473,109590.0,109580.0,0.0004]
[1751524022993,1.1665551,109590.0,109580.0,0.0004]
[1751524023202,1.7672473,109590.0,109580.0,0.0004]
[1751524023853,1.72036645,109590.0,109580.0,0.0004]
[1751524024059,1.68386115,109590.0,109580.0,0.01750653]
[1751524024214,1.12249608,109590.0,109580.0,0.01750653]
[1751524024420,1.05582998,109590.0,109580.0,0.04960653]
[1751524024646,1.35617608,109590.0,109580.0,0.04960653]
[1751524024844,1.20617608,109590.0,109580.0,0.04960653]
[1751524025056,1.35617608,109590.0,109580.0,0.04960653]
[1751524025459,1.35617608,109590.0,109580.0,0.0496004]
[1751524025692,1.09505408,109590.0,109580.0,0.0496004]
[1751524025867,1.34864929,109590.0,109580.0,0.0496004]
[1751524026066,1.39638098,109590.0,109580.0,0.0496004]
[1751524029062,1.39638098,109590.0,109580.0,0.0334004]
[1751524029519,1.34864929,109590.0,109580.0,0.0334004]
[1751524030780,1.02838798,109590.0,109580.0,0.0334004]
[1751524031143,1.34864929,109590.0,109580.0,0.0334004]
[1751524031350,1.34864929,109590.0,109580.0,0.0491004]
[1751524031728,1.34864929,109590.0,109580.0,0.04908491]
[1751524032526,1.44140937,109590.0,109580.0,0.04908491]
[1751524033161,1.44140937,109590.0,109580.0,0.032]
[1751524035465,1.44140937,109590.0,109580.0,0.0004]
[1751524035766,1.76167068,109590.0,109580.0,0.0004]
[1751524038218,1.6689106,109590.0,109580.0,0.0004]
[1751524039269,1.34864929,109590.0,109580.0,0.0004]
[1751524040428,1.34864929,109590.0,109580.0,0.0156]
[1751524040630,1.34864929,109590.0,109580.0,0.0316]
[1751524041870,1.02838798,109590.0,109580.0,0.0316]
[1751524042089,1.34864929,109590.0,109580.0,0.0316]
[1751524042239,1.44140937,109590.0,109580.0,0.0316]
[1751524043214,1.44140937,109590.0,109580.0,0.0156]
[1751524043431,1.12114806,109590.0,109580.0,0.0156]
[1751524043644,1.44140937,109590.0,109580.0,0.0156]
[1751524045442,1.02838798,109590.0,109580.0,0.0156]
[1751524045688,1.34864929,109590.0,109580.0,0.0156]
[1751524047921,1.32865287,109590.0,109580.0,0.0156]
[1751524048497,1.32865287,109590.0,109580.0,0.0004]
[1751524050768,1.32877287,109590.0,109580.0,0.0004]
[1751524052372,1.37669499,109590.0,109580.0,0.0004]
[1751524058431,1.59601499,109590.0,109580.0,0.0004]
[1751524059734,1.2957501,109590.0,109580.0,0.0004]
[1751524059971,1.54809287,109590.0,109580.0,0.0004]
[1751524061983,1.01402798,109590.0,109580.0,0.0004]
[1751524062192,1.54793287,109590.0,109580.0,0.0004]
[1751524065055,1.31429287,109590.0,109580.0,0.0004]
[1751524065273,1.18715847,109590.0,109580.0,0.0318]
[1751524065488,1.37447847,109590.0,109580.0,0.0318]
[1751524065915,1.14091847,109590.0,109580.0,0.0318]
[1751524066129,0.91004883,109590.0,109580.0,0.0318]
[1751524066343,0.92829824,109590.0,109580.0,0.0318]
[1751524066560,0.93229824,109590.0,109580.0,0.0318]
[1751524067008,1.22656313,109590.0,109580.0,0.0318]
[1751524067715,1.22656313,109590.0,109580.0,0.04888599]
[1751524067912,1.39481278,109590.0,109580.0,0.04888599]
[1751524068123,1.40347758,109590.0,109580.0,0.04888599]
[1751524069212,1.10321269,109590.0,109580.0,0.04888599]
[1751524069433,1.40347758,109590.0,109580.0,0.04888599]
[1751524073126,1.3856882,109590.0,109580.0,0.04888599]
[1751524073331,1.3856882,109590.0,109580.0,0.03288599]
[1751524073530,1.3856882,109590.0,109580.0,0.01748599]
[1751524075991,1.37656337,109590.0,109580.0,0.01748599]
[1751524077059,1.70872826,109590.0,109580.0,0.01748599]
[1751524077209,1.95148834,109590.0,109580.0,0.01748599]
[1751524078594,1.35095856,109590.0,109580.0,0.01748599]
[1751524078793,1.95148834,109590.0,109580.0,0.01748599]
[1751524079448,1.65122345,109590.0,109580.0,0.01748599]
[1751524080905,1.95148834,109590.0,109580.0,0.01748599]
[1751524089443,6.95148834,109590.0,109580.0,0.01748599]
[1751524089859,6.35095856,109590.0,109580.0,0.01748599]
[1751524090069,6.95064834,109590.0,109580.0,0.01748599]
[1751524091342,6.93504834,109590.0,109580.0,0.01748599]
[1751524092312,6.63478345,109590.0,109580.0,0.01748599]
[1751524092559,1.63478345,109590.0,109580.0,0.01748599]
[1751524092706,1.29304337,109590.0,109580.0,0.01748599]
[1751524092917,0.73361358,109590.0,109580.0,0.04878599]
[1751524093137,0.92033358,109590.0,109580.0,0.04878599]
[1751524093346,1.22972339,109590.0,109580.0,0.04878599]
[1751524093752,1.40822179,109590.0,109580.0,0.04878599]
[1751524093955,1.39709754,109590.0,109580.0,0.04878599]
[1751524094169,1.48073312,109590.0,109580.0,0.01748599]
[1751524094815,1.47160837,109590.0,109580.0,0.01748599]
[1751524095223,1.47460837,109590.0,109580.0,0.01748599]
[1751524095886,1.46548345,109590.0,109580.0,0.01748599]
[1751524096546,1.48148345,109590.0,109580.0,0.01748599]
[1751524096760,1.46548345,109590.0,109580.0,0.01748599]
[1751524097190,1.37272337,109590.0,109580.0,0.01748599]
[1751524097399,1.37272337,109590.0,109580.0,0.04878599]
[1751524097795,1.37272337,109590.0,109580.0,0.03248599]
[1751524098376,1.37272337,109590.0,109580.0,0.01748599]
[1751524100166,1.14004337,109590.0,109580.0,0.01748599]
[1751524100383,1.45501294,109590.0,109580.0,0.01748599]
[1751524101028,1.47091294,109590.0,109580.0,0.01748599]
[1751524101234,1.48641294,109590.0,109580.0,0.01748599]
[1751524103450,1.48641294,109590.0,109580.0,0.01747179]
[1751524107796,1.47091294,109590.0,109580.0,0.01747179]
[1751524110479,1.48591294,109590.0,109580.0,0.01747179]
[1751524112652,1.47091294,109590.0,109580.0,0.01747179]
[1751524113064,1.47055294,109590.0,109580.0,0.01747179]
[1751524113909,1.17028805,109590.0,109580.0,0.01747179]
[1751524114109,1.38814337,109590.0,109580.0,0.01747179]
[1751524114740,1.08787848,109590.0,109580.0,0.01747179]
[1751524114955,1.38814337,109590.0,109580.0,0.01747179]
[1751524115954,1.14004337,109590.0,109580.0,0.01747179]
[1751524116239,1.37224337,109590.0,109580.0,0.04937179]
[1751524116440,1.37224337,109590.0,109580.0,0.03407179]
[1751524116747,1.46500345,109590.0,109580.0,0.01747179]
[1751524118148,1.37224337,109590.0,109580.0,0.01747179]
[1751524119530,1.37224337,109590.0,109580.0,0.01747891]
[1751524120352,1.37224337,109590.0,109580.0,0.0004]
[1751524120582,1.37224337,109590.0,109580.0,0.01747977]
[1751524120805,0.90772917,109590.0,109580.0,0.04847977]
[1751524121017,0.66640425,109590.0,109580.0,0.04847977]
[1751524121224,1.11523348,109590.0,109580.0,0.04847977]
[1751524121433,1.12435773,109590.0,109580.0,0.04847977]
[1751524122291,1.13348231,109590.0,109580.0,0.04847977]
[1751524122503,1.12435773,109590.0,109580.0,0.04847977]
[1751524123345,0.59189284,109590.0,109580.0,0.04847977]
[1751524123561,1.12435781,109590.0,109580.0,0.04847977]
[1751524123771,1.13348256,109590.0,109580.0,0.04847977]
[1751524125619,0.84234259,109590.0,109580.0,0.04847977]
[1751524125803,1.14260748,109590.0,109580.0,0.04847977]
[1751524126813,1.13348331,109590.0,109580.0,0.04847977]
[1751524128600,1.13344331,109590.0,109580.0,0.04847977]
[1751524129343,0.90128331,109590.0,109580.0,0.04847977]
[1751524129548,1.13344331,109590.0,109580.0,0.04847977]
[1751524130785,1.13344331,109590.0,109580.0,0.0314]
[1751524130985,1.13344331,109590.0,109580.0,0.0484742]
[1751524131609,1.31594171,109590.0,109580.0,0.0484742]
[1751524132017,1.13344331,109590.0,109580.0,0.0484742]
[1751524132292,0.58276875,109590.0,109580.0,0.0484742]
[1751524132600,1.12431805,109590.0,109580.0,0.0484742]
[1751524133440,0.05096,109590.0,109580.0,0.67635302]
[1751524133641,0.05096,109590.0,109580.0,0.71265515]
[1751524133848,0.05096,109590.0,109580.0,0.41239026]
[1751524134258,0.04596,109590.0,109580.0,0.37608813]
[1751524134477,0.04696,109590.0,109580.0,0.41239026]
[1751524134680,0.04796,109590.0,109580.0,0.11212537]
[1751524134905,0.04796,109590.0,109580.0,0.41239026]
[1751524135315,0.04796,109590.0,109580.0,0.37608813]
[1751524136159,0.0022,109590.0,109580.0,0.37608813]
[1751524136365,0.04796,109590.0,109580.0,0.37608813]
[1751524144024,0.04785202,109590.0,109580.0,0.37608813]
[1751524145972,0.04785202,109590.0,109580.0,0.07582324]
[1751524146182,0.04785202,109590.0,109580.0,0.37608813]
[1751524147723,0.00209202,109590.0,109580.0,0.37608813]
[1751524147922,0.04781202,109590.0,109580.0,0.71265515]
[1751524148322,0.04781202,109590.0,109580.0,0.69558095]
[1751524148503,0.04781202,109590.0,109580.0,0.71262031]
[1751524148913,0.00209202,109590.0,109580.0,0.9970211]
[1751524149140,0.00209202,109590.0,109580.0,1.01160143]
[1751524149376,0.00209202,109590.0,109580.0,1.0479332]
[1751524149553,0.00209202,109590.0,109580.0,1.02985242]
[1751524149781,0.00209202,109590.0,109580.0,1.02072701]
[1751524150144,0.00209202,109590.0,109580.0,1.01160151]
[1751524150353,0.00109202,109590.0,109580.0,1.01160151]
[1751524150549,0.00109202,109590.0,109580.0,1.01260151]
[1751524150969,9.202e-05,109590.0,109580.0,1.01260159]
[1751524151172,9.202e-05,109590.0,109580.0,0.99435018]
[1751524151653,9.202e-05,109590.0,109580.0,1.00347593]
[1751524151976,9.202e-05,109590.0,109580.0,1.01460159]
[1751524152419,9.202e-05,109590.0,109580.0,1.02372717]
[1751524152848,9.202e-05,109590.0,109580.0,1.01460159]
[1751524153510,9.202e-05,109590.0,109580.0,1.02272709]
[1751524153710,9.202e-05,109590.0,109580.0,1.02272717]
[1751524154032,9.202e-05,109590.0,109580.0,1.01360159]
[1751524154229,9.202e-05,109590.0,109580.0,1.01660159]
[1751524154666,9.202e-05,109590.0,109580.0,1.02572717]
[1751524154867,9.202e-05,109590.0,109580.0,1.01660159]
[1751524155070,9.202e-05,109590.0,109580.0,1.02572717]
[1751524155281,9.202e-05,109590.0,109580.0,1.01660159]
[1751524155482,9.202e-05,109590.0,109580.0,1.05290412]
[1751524155847,9.202e-05,109590.0,109580.0,1.37142]
[1751524156059,9.202e-05,109590.0,109580.0,1.32599206]
[1751524156265,9.202e-05,109590.0,109580.0,1.37141963]
[1751524156951,9.202e-05,109590.0,109580.0,1.07115474]
[1751524157113,9.202e-05,109590.0,109580.0,1.03485267]
[1751524157350,9.202e-05,109590.0,109580.0,1.37142029]
[1751524157748,9.202e-05,109590.0,109580.0,1.0711554]
[1751524158207,9.202e-05,109590.0,109580.0,1.04397808]
[1751524158621,9.202e-05,109590.0,109580.0,1.02572717]
[1751524158840,9.202e-05,109590.0,109580.0,1.03485267]
[1751524159041,9.202e-05,109590.0,109580.0,1.04397808]
[1751524159253,9.202e-05,109590.0,109580.0,1.03485267]
[1751524159700,9.202e-05,109590.0,109580.0,1.04397808]
[1751524159842,9.202e-05,109590.0,109580.0,1.02572717]
[1751524160463,9.202e-05,109590.0,109580.0,1.34424297]
[1751524160795,9.202e-05,109590.0,109580.0,1.03485233]
[1751524161053,9.202e-05,109590.0,109580.0,1.01660142]
[1751524161465,9.202e-05,109590.0,109580.0,1.02572692]
[1751524161670,9.202e-05,109590.0,109580.0,1.03485233]
[1751524162078,9.202e-05,109590.0,109580.0,1.02572692]
[1751524162708,9.202e-05,109590.0,109580.0,1.03483629]
[1751524163205,9.202e-05,109590.0,109580.0,1.0439617]
[1751524163574,9.202e-05,109590.0,109580.0,1.03483604]
[1751524163820,9.202e-05,109590.0,109580.0,1.0165853]
[1751524164013,9.202e-05,109590.0,109580.0,1.01658827]
[1751524164417,9.202e-05,109590.0,109580.0,1.02571368]
[1751524164828,9.202e-05,109590.0,109580.0,1.03483901]
[1751524165322,9.202e-05,109590.0,109580.0,1.04396426]
[1751524165757,9.202e-05,109590.0,109580.0,1.02571368]
[1751524166310,9.202e-05,109590.0,109580.0,0.99833719]
[1751524166511,9.202e-05,109590.0,109580.0,1.00746285]
[1751524166737,9.202e-05,109590.0,109580.0,1.01658843]
[1751524166903,9.202e-05,109590.0,109580.0,1.02571393]
[1751524167495,9.202e-05,109590.0,109580.0,1.03483934]
[1751524168265,9.202e-05,109590.0,109580.0,1.03484132]
[1751524168464,9.202e-05,109590.0,109580.0,1.34423137]
[1751524168919,9.202e-05,109590.0,109580.0,1.71165637]
[1751524169124,9.202e-05,109590.0,109580.0,1.65709131]
[1751524169624,9.202e-05,109590.0,109580.0,1.72954946]
[1751524171486,9.202e-05,109590.0,109580.0,1.91582946]
[1751524172485,9.202e-05,109590.0,109580.0,2.21082946]
[1751524173048,9.202e-05,109590.0,109580.0,3.16162413]
[1751524173295,9.202e-05,109590.0,109580.0,3.13916598]
[1751524173500,9.202e-05,109590.0,109580.0,3.2301894]
[1751524174048,9.202e-05,109590.0,109580.0,2.32739473]
[1751524174324,9.202e-05,109590.0,109580.0,2.32439473]
[1751524174587,9.202e-05,109590.0,109580.0,2.37707473]
[1751524176412,9.202e-05,109590.0,109580.0,2.37706506]
[1751524176620,9.202e-05,109590.0,109580.0,2.36004638]
[1751524178009,9.202e-05,109590.0,109580.0,3.26084105]
[1751524184174,9.202e-05,109590.0,109580.0,2.12808638]
[1751524184379,9.202e-05,109590.0,109580.0,2.35996638]
[1751524185551,9.202e-05,109590.0,109580.0,2.12808638]
[1751524185755,9.202e-05,109590.0,109580.0,2.09904885]
[1751524185952,9.202e-05,109590.0,109580.0,2.04904885]
[1751524186155,9.202e-05,109590.0,109580.0,2.09904885]
[1751524187951,9.202e-05,109590.0,109580.0,2.04904885]
[1751524188153,9.202e-05,109590.0,109580.0,2.09904885]
[1751524193125,9.202e-05,109590.0,109580.0,2.04904885]
[1751524193341,9.202e-05,109590.0,109580.0,2.09904885]
[1751524194708,9.202e-05,109590.0,109580.0,2.09900885]
[1751524196052,9.202e-05,109590.0,109580.0,1.86716885]
[1751524196272,9.202e-05,109590.0,109580.0,2.09900885]
[1751524199599,9.202e-05,109590.0,109580.0,2.00798543]
[1751524199763,0.0123,109600.0,109590.0,1.25429013]
[1751524199962,0.0123,109600.0,109590.0,1.62415228]
[1751524200430,0.0123,109600.0,109590.0,1.65157228]
[1751524200577,0.0123,109600.0,109590.0,1.66777228]
[1751524201172,0.0123,109600.0,109590.0,1.66877228]
[1751524201414,0.0123,109600.0,109590.0,1.41641228]
[1751524201638,0.0449,109600.0,109590.0,1.6116967]
[1751524201846,0.0449,109600.0,109590.0,1.63352681]
[1751524201847,0.02834051,109600.0,109590.0,1.63352681]
[1751524202058,0.02834051,109600.0,109590.0,1.63452681]
[1751524202836,0.02834051,109600.0,109590.0,1.59444795]
[1751524203044,0.02834051,109600.0,109590.0,0.55312215]
[1751524203248,0.02834051,109600.0,109590.0,0.35367234]
[1751524203454,0.02834051,109600.0,109590.0,0.26091226]
[1751524203688,0.02834051,109600.0,109590.0,0.24272002]
[1751524203821,0.02834051,109600.0,109590.0,0.25977967]
[1751524205244,0.02834051,109600.0,109590.0,0.2961717]
[1751524206291,0.02834051,109600.0,109590.0,0.24157168]
[1751524208381,0.02834051,109600.0,109590.0,0.26883366]
[1751524210003,0.02834051,109600.0,109590.0,0.08271366]
[1751524210311,0.02834051,109600.0,109590.0,0.26883366]
[1751524211772,0.02834051,109600.0,109590.0,0.28712366]
[1751524211986,0.02834051,109600.0,109590.0,0.26883366]
[1751524216583,0.02834051,109600.0,109590.0,0.58877223]
[1751524217654,0.02834051,109600.0,109590.0,0.26883366]
[1751524219186,0.02834051,109600.0,109590.0,0.26923366]
[1751524219385,0.02854051,109600.0,109590.0,0.26923366]
[1751524219943,0.02854051,109600.0,109590.0,0.08311366]
[1751524220168,0.02854051,109600.0,109590.0,0.26923366]
[1751524221207,0.02854051,109600.0,109590.0,0.26919964]
[1751524222025,0.02854051,109600.0,109590.0,0.08307964]
[1751524222764,0.02854051,109600.0,109590.0,0.08308201]
[1751524222965,0.02854051,109600.0,109590.0,0.08208201]
[1751524223397,0.04678742,109600.0,109590.0,0.08208201]
[1751524223640,0.04678742,109600.0,109590.0,0.04468998]
[1751524223859,0.03766384,109600.0,109590.0,0.04468998]
[1751524225230,0.04678726,109600.0,109590.0,0.04468998]
[1751524225467,0.05591076,109600.0,109590.0,0.04468998]
[1751524225667,0.06503443,109600.0,109590.0,0.04468998]
[1751524226306,0.07415826,109600.0,109590.0,0.04468998]
[1751524226516,0.07415818,109600.0,109590.0,0.04468998]
[1751524226723,0.06503443,109600.0,109590.0,0.04468998]
[1751524227399,0.04678726,109600.0,109590.0,0.04468998]
[1751524227609,0.05591084,109600.0,109590.0,0.04468998]
[1751524229136,0.06503467,109600.0,109590.0,0.04468998]
[1751524229355,0.06503459,109600.0,109590.0,0.04468998]
[1751524229756,0.05591084,109600.0,109590.0,0.04468998]
[1751524231404,0.09242726,109600.0,109590.0,0.04468998]
[1751524231608,0.10155084,109600.0,109590.0,0.04468998]
[1751524232413,0.10155084,109600.0,109590.0,0.08108201]
[1751524233400,0.09242726,109600.0,109590.0,0.08108201]
[1751524233655,0.10155076,109600.0,109590.0,0.08108201]
[1751524234194,0.11067434,109600.0,109590.0,0.08108201]
[1751524234820,0.10155076,109600.0,109590.0,0.08108201]
[1751524235243,0.07414051,109600.0,109590.0,0.08108201]
[1751524235861,0.07414051,109600.0,109590.0,0.3811737]